fUSD/lending_fUSD_20241129
["ID","MTS","AMOUNT","RATE_DAILY","PERIOD"]
[343705796,1732894231905,-256.22230109,8.219e-05,2]
[343705797,1732894232007,-321.44056214,8.219e-05,2]
[343705798,1732894232025,-185.83,8.219e-05,2]
[343705799,1732894232041,-250.0,8.322e-05,2]
[343705800,1732894232057,-341.82,8.394e-05,2]
[343705801,1732894232075,-884.92,8.411e-05,2]
[343705802,1732894232094,-550.59,8.478e-05,2]
[343705803,1732894232109,-200.0,8.486e-05,2]
[343705804,1732894232124,-300.0,8.541e-05,2]
[343705805,1732894232139,-7001.02,8.542e-05,2]
[343705806,1732894232154,-2000.0,8.637e-05,2]
[343705807,1732894232170,-250.0,8.716e-05,2]
[343705808,1732894232190,-940.58,8.72e-05,2]
[343705809,1732894232205,-1000.0,8.733e-05,2]
[343705810,1732894232219,-981.97,8.748e-05,2]
[343705811,1732894232234,-935.13,8.818e-05,2]
[343705812,1732894232250,-575.93,8.823e-05,2]
[343705813,1732894232266,-150.0,8.999e-05,2]
[343705814,1732894232281,-49230.29562512,9e-05,2]
[343705815,1732894232296,-10123.66289654,9e-05,2]
[343705816,1732894232311,-2156.53356966,9e-05,2]
[343705817,1732894232326,-912.25,9.107e-05,2]
[343705818,1732894232344,-30177.51242484,9.28e-05,2]
[343705819,1732894232359,-178.61,9.349e-05,2]
[343705820,1732894232375,-375.33,9.383e-05,2]
[343705821,1732894232389,-420.0,9.395e-05,2]
[343705822,1732894232406,-5000.0,9.5e-05,2]
[343705823,1732894232420,-400.0,9.589e-05,2]
[343705826,1732894232439,-448.82,9.67e-05,2]
[343705829,1732894232454,-11727.2755477,9.697e-05,2]
[343705832,1732894232473,-1960.7244523,9.697e-05,2]
[343705834,1732894232487,-3662.3014125,9.782e-05,2]
[343705837,1732894232505,-550.0,9.782e-05,2]
[343705850,1732894232689,-1560.2810875,9.782e-05,2]
[343705853,1732894232703,-102008.35215038,9.8e-05,2]
[343705856,1732894232722,-2943.3,9.8e-05,2]
[343705863,1732894232777,-2490.22680285,9.8e-05,2]
[343705865,1732894232964,-8094.4,9.8e-05,2]
[343705866,1732894233048,-1051.43947358,9.8e-05,2]
[343705867,1732894233236,-9293.44387319,9.8e-05,2]
[343705868,1732894233246,-583.69864005,9.8e-05,2]
[343705886,1732894237766,-11308.39735995,9.8e-05,2]
[343705887,1732894237776,-1531.0,9.801e-05,2]
[343705888,1732894237786,-592.7793,9.82e-05,2]
[343705889,1732894237795,-1000.0,9.824e-05,2]
[343705890,1732894237804,-1600.0,9.863e-05,2]
[343705891,1732894237814,-40038.3064,9.882e-05,2]
[343705892,1732894237823,-255.0,9.899e-05,2]
[343705893,1732894237832,-2500.0,9.9e-05,2]
[343705894,1732894237843,-2242.04728375,9.9e-05,2]
[343705895,1732894237852,-14336.7898,9.9e-05,2]
[343705896,1732894237862,-500.0,9.92e-05,2]
[343705897,1732894237871,-2374.06448621,9.96e-05,2]
[343705898,1732894237881,-762.83633874,9.97e-05,2]
[343705899,1732894237890,-1371.13222783,9.971e-05,2]
[343705900,1732894237899,-1709.0,9.973e-05,2]
[343705901,1732894237909,-454.0,9.973e-05,2]
[343705902,1732894237918,-797.0,9.973e-05,2]
[343705903,1732894237927,-298.75727178,9.973e-05,2]
[343705904,1732894237940,-500.0,9.973e-05,2]
[343705905,1732894237950,-501.45819183,9.973e-05,2]
[343705906,1732894237959,-159.36530203,9.973e-05,2]
[343705907,1732894237969,-159.3817556,9.973e-05,2]
[343705908,1732894237979,-434.1720241,9.973e-05,2]
[343705909,1732894237988,-159.36627991,9.973e-05,2]
[343705910,1732894237999,-159.39132633,9.973e-05,2]
[343705911,1732894238009,-159.38069338,9.973e-05,2]
[343705912,1732894238019,-159.39388467,9.973e-05,2]
[343705913,1732894238030,-159.36370951,9.973e-05,2]
[343705914,1732894238040,-355.75656399,9.973e-05,2]
[343705915,1732894238050,-478.13200507,9.973e-05,2]
[343705916,1732894238060,-159.37859586,9.973e-05,2]
[343705917,1732894238070,-160.93449564,9.973e-05,2]
[343705918,1732894238080,-268.538268,9.973e-05,2]
[343705919,1732894238090,-500.81353675,9.973e-05,2]
[343705920,1732894238100,-200.0,9.973e-05,2]
[343705921,1732894238113,-200.0,9.974e-05,2]
[343705922,1732894238123,-1371.13222783,9.977e-05,2]
[343705923,1732894238133,-200.0,9.977e-05,2]
[343705924,1732894238142,-762.83633874,9.978e-05,2]
[343705925,1732894238151,-1371.13222783,9.98e-05,2]
[343705926,1732894238161,-762.83633874,9.981e-05,2]
[343705927,1732894238171,-1371.13222783,9.981e-05,2]
[343705929,1732894238182,-762.83633874,9.984e-05,2]
[343705931,1732894238191,-200.0,9.985e-05,2]
[343705933,1732894238200,-762.83633874,9.989e-05,2]
[343705935,1732894238210,-200.0,9.994e-05,2]
[343705937,1732894238219,-1371.13222783,9.996e-05,2]
[343705939,1732894238229,-158.26631,9.996e-05,2]
[343705941,1732894238238,-154.589909,9.996e-05,2]
[343705943,1732894238248,-170.54209,9.996e-05,2]
[343705944,1732894238263,-200.0,9.997e-05,2]
[343705945,1732894238273,-158.26631,9.997e-05,2]
[343705946,1732894238283,-762.83633874,9.997e-05,2]
[343705947,1732894238292,-200.0,9.998e-05,2]
[343705948,1732894238302,-200.0,9.998e-05,2]
[343705949,1732894238312,-395.31,9.999e-05,2]
[343705950,1732894238321,-2100.243,9.999e-05,2]
[343705951,1732894238331,-247.8248312,9.999e-05,2]
[343705952,1732894238341,-5800.0,9.999e-05,2]
[343705953,1732894238350,-155.83154682,9.999e-05,2]
[343705954,1732894238359,-158.26631,9.999e-05,2]
[343705955,1732894238368,-158.26631,9.999e-05,2]
[343705956,1732894238379,-158.26631,9.999e-05,2]
[343705957,1732894238391,-158.26631,9.999e-05,2]
[343705958,1732894238561,-158.26631,9.999e-05,2]
[343705959,1732894238571,-158.26631,9.999e-05,2]
[343705960,1732894238580,-575.6,9.999e-05,2]
[343705961,1732894238589,-6632.2495118,0.0001,2]
[343705962,1732894238598,-498513.89999888,0.0001,2]
[343705963,1732894238607,-5336.20942834,0.0001,2]
[343705964,1732894238616,-5336.20942825,0.0001,2]
[343705965,1732894238625,-5336.20942825,0.0001,2]
[343705966,1732894238634,-5336.20942825,0.0001,2]
[343705967,1732894238643,-5336.20942825,0.0001,2]
[343705968,1732894238652,-5336.20942825,0.0001,2]
[343705969,1732894238661,-5336.20942825,0.0001,2]
[343705970,1732894238670,-5336.20942825,0.0001,2]
[343705971,1732894238679,-5336.20942825,0.0001,2]
[343705972,1732894238690,-51565446.92475233,0.0001,2]
[343705973,1732894238698,-335260.61262508,0.0001,2]
[343705974,1732894238707,-15986706.3510408,0.0001,2]
[343705975,1732894238766,-2007.2366142,0.0001,2]
[343705976,1732894238777,-2119.95505,0.0001,2]
[343705977,1732894238787,-1764.87048,0.0001,2]
[343705978,1732894238798,-2135.58432,0.0001,2]
[343705979,1732894238827,-983.83,0.0001,2]
[343705980,1732894238837,-501.41997,0.0001,2]
[343705981,1732894238915,-1967.71065072,0.0001,2]
[343705982,1732894238926,-7063.20168,0.0001,2]
[343705983,1732894238940,-633.004498,0.0001,2]
[343705984,1732894238958,-55783.63485099,0.0001,2]
[343705985,1732894238969,-71155.89405322,0.0001,2]
[343705986,1732894238981,-4555.76367251,0.0001,2]
[343705987,1732894238993,-197060.0,0.0001,2]
[343705988,1732894239081,-102.3677396,0.0001,2]
[343705989,1732894239092,-1971.58,0.0001,2]
[343705990,1732894239103,-464.19572582,0.0001,2]
[343705991,1732894239114,-1100.00008,0.0001,2]
[343705992,1732894239178,-5031.36713102,0.0001,2]
[343705993,1732894239192,-649.82179889,0.0001,2]
[343705994,1732894239204,-98127.00000006,0.0001,2]
[343706001,1732894240344,-4881.9442962,0.0001,2]
[343706002,1732894240415,-299.50439871,0.0001,2]
[343706003,1732894240432,-2529.06054758,0.0001,2]
[343706004,1732894240454,-36887.82612331,0.0001,2]
[343706005,1732894240473,-312.67643746,0.0001,2]
[343706006,1732894240691,-516.94,0.0001,2]
[343706007,1732894240709,-416.46919125,0.0001,2]
[343706013,1732894242814,-1263.0,9.697e-05,2]
[343706014,1732894242823,-189.16,9.697e-05,2]
[343706015,1732894242833,-7473.22022544,0.0001,2]
[343706016,1732894242843,-480.34,0.0001,2]
[343706017,1732894242855,-2778490.19626716,0.0001,2]
[343706018,1732894242866,-126666.82345386,0.0001,2]
[343706019,1732894242877,-338.34334402,0.0001,2]
[343706020,1732894242950,-521.9389,0.0001,2]
[343706021,1732894242992,-3960.86330189,0.0001,2]
[343706022,1732894243004,-360.20251,0.0001,2]
[343706023,1732894243019,-2914.66654673,0.0001,2]
[343706024,1732894243036,-53467.6519,0.0001,2]
[343706025,1732894243061,-49276.09040953,0.0001,2]
[343706026,1732894243106,-2071.3799921,0.0001,2]
[343706027,1732894243121,-8103.48060019,0.0001,2]
[343706028,1732894243134,-1938.75564658,0.0001,2]
[343706029,1732894243145,-2744.06211226,0.0001,2]
[343706030,1732894243156,-5967.30046195,0.0001,2]
[343706031,1732894243196,-8036.08417827,0.0001,2]
[343706032,1732894243207,-24502.00745572,0.0001,2]
[343706033,1732894243219,-4715.26107696,0.0001,2]
[343706034,1732894243230,-3005.6541495,0.0001,2]
[343706035,1732894243281,-89465.0,0.0001,2]
[343706055,1732894245641,-49327.3219617,0.0001,2]
[343706056,1732894246338,-613.36,0.0001,2]
[343706057,1732894246349,-13314.9408564,0.0001,2]
[343706058,1732894246360,-450.44413827,0.0001,2]
[343706059,1732894246389,-16209.32887742,0.0001,2]
[343706060,1732894246410,-2089.60004,0.0001,2]
[343706061,1732894246421,-1972.17613132,0.0001,2]
[343706062,1732894246551,-24663.38875,0.0001,2]
[343706063,1732894246562,-4932.84312,0.0001,2]
[343706064,1732894246574,-9864.5898,0.0001,2]
[343706068,1732894403074,157.93,0.00016658,30]
[343706069,1732894411078,200.0,0.0002533,120]
[343706070,1732894536694,5100.0,0.00017,13]
[343706071,1732894563306,5100.0,0.00017,12]
[343706072,1732894579039,5100.0,0.00017,11]
[343706073,1732894596258,5100.0,0.00017,10]
[343706074,1732894702897,-200.0,0.00026672,120]
[343706075,1732894702929,-150.0,0.00027,120]
[343706076,1732894702958,-239.93625249,0.00027,120]
[343706077,1732894702988,-196.80956962,0.00027,120]
[343706078,1732894703016,-6148.3540424,0.00027,120]
[343706079,1732894713556,-2000.0,0.00027502,120]
[343706080,1732894721898,-200.0,0.00028013,120]
[343706081,1732894721927,-2000.0,0.00028276,120]
[343706082,1732894721959,-150.0,0.00029,120]
[343706083,1732894721987,-150.0,0.00029,120]
[343706093,1732895003781,6251.12,0.00026,120]
[343706094,1732895006123,500.0,0.00025207,120]
[343706095,1732895014200,200.0,0.00025172,120]
[343706096,1732895026361,2476.02,0.00026,120]
[343706098,1732895103829,157.93,0.00016658,30]
[343706167,1732895432121,-186.94,8.219e-05,2]
[343706168,1732895432136,-1070.45,8.219e-05,2]
[343706169,1732895432152,-1000.0,8.575e-05,2]
[343706170,1732895432167,-250.0,8.586e-05,2]
[343706171,1732895432181,-1514.7005001,8.595e-05,2]
[343706172,1732895432199,-620.931,8.595e-05,2]
[343706173,1732895432218,-10687.5384999,8.595e-05,2]
[343706174,1732895432234,-500.0,8.659e-05,2]
[343706175,1732895432249,-200.0,8.66e-05,2]
[343706176,1732895432266,-157.95,8.663e-05,2]
[343706177,1732895432281,-742.99,8.675e-05,2]
[343706178,1732895432297,-300.26,8.678e-05,2]
[343706179,1732895432313,-250.0,8.712e-05,2]
[343706180,1732895432329,-1513.0,8.76e-05,2]
[343706182,1732895432344,-300.0,8.8e-05,2]
[343706184,1732895432359,-2930.37,8.801e-05,2]
[343706187,1732895432377,-250.0,8.825e-05,2]
[343706190,1732895432392,-771.06,8.881e-05,2]
[343706192,1732895432407,-157.04,9.194e-05,2]
[343706195,1732895432422,-184.12,9.224e-05,2]
[343706197,1732895432437,-165.37,9.369e-05,2]
[343706200,1732895432452,-2974.9726236,9.6e-05,2]
[343706263,1732895433303,-2272.8100764,9.6e-05,2]
[343706265,1732895433314,-1000.0,9.647e-05,2]
[343706267,1732895433324,-351.9417,9.7e-05,2]
[343706269,1732895433333,-12844.2718,9.7e-05,2]
[343706271,1732895433342,-961.1477,9.7e-05,2]
[343706273,1732895433352,-10844.2976142,9.7e-05,2]
[343706282,1732895433431,-422.33750001,9.7e-05,2]
[343706284,1732895433444,-60479.45818579,9.7e-05,2]
[343706286,1732895433456,-1362.0,9.7e-05,2]
[343706287,1732895433467,-300.26,9.762e-05,2]
[343706288,1732895433477,-3356.0482,9.8e-05,2]
[343706289,1732895433494,-1048.1093,9.8e-05,2]
[343706290,1732895433506,-4032.7372,9.8e-05,2]
[343706291,1732895433516,-3353.2884,9.8e-05,2]
[343706292,1732895433528,-2636.7563,9.8e-05,2]
[343706294,1732895433539,-4798.81376287,9.801e-05,2]
[343706295,1732895433552,-2798.18623713,9.801e-05,2]
[343706297,1732895433563,-1600.0,9.863e-05,2]
[343706299,1732895433574,-86753.37508286,9.9e-05,2]
[343706308,1732895433649,-4739.472496,9.9e-05,2]
[343706310,1732895433660,-2358.8888512,9.9e-05,2]
[343706334,1732895433891,-473.36866146,9.9e-05,2]
[343706336,1732895433903,-71979.56620848,9.9e-05,2]
[343706338,1732895433912,-500.0,9.9e-05,2]
[343706340,1732895433922,-486.2704,9.9e-05,2]
[343706342,1732895433931,-2500.0,9.9e-05,2]
[343706344,1732895433940,-639.3803,9.9e-05,2]
[343706346,1732895433950,-10210.1269,9.9e-05,2]
[343706348,1732895433959,-5100.0,9.9e-05,4]
[343706350,1732895433969,-1654.42979893,9.9e-05,2]
[343706352,1732895433978,-5100.0,9.9e-05,3]
[343706354,1732895433991,-21.89793153,9.92e-05,2]
[343706356,1732895434003,-478.10206847,9.92e-05,2]
[343706359,1732895434012,-400.68532749,9.97e-05,2]
[343706361,1732895434022,-66.50909034,9.971e-05,2]
[343706368,1732895434084,-133.49090966,9.971e-05,2]
[343706370,1732895434094,-500.0,9.973e-05,2]
[343706372,1732895434103,-159.40438969,9.973e-05,2]
[343706374,1732895434113,-501.66210452,9.973e-05,2]
[343706376,1732895434122,-400.68532749,9.976e-05,2]
[343706378,1732895434132,-400.68532749,9.977e-05,2]
[343706380,1732895434141,-200.0,9.982e-05,2]
[343706382,1732895434151,-400.68532749,9.983e-05,2]
[343706384,1732895434160,-2362.87154903,9.99e-05,2]
[343706386,1732895434169,-2297.21073543,9.99e-05,2]
[343706731,1732895437950,-65.66081359,9.99e-05,2]
[343706733,1732895437960,-2362.87154902,9.99e-05,2]
[343706735,1732895437969,-2362.87154902,9.99e-05,2]
[343706737,1732895437979,-2362.87154902,9.99e-05,2]
[343706739,1732895437989,-2362.87154902,9.99e-05,2]
[343706741,1732895437999,-2362.87154902,9.99e-05,2]
[343706743,1732895438008,-2362.87154902,9.99e-05,2]
[343706745,1732895438017,-2362.87154902,9.99e-05,2]
[343706747,1732895438027,-400.68532749,9.993e-05,2]
[343706749,1732895438036,-400.68532749,9.994e-05,2]
[343706751,1732895438045,-394.09,9.999e-05,2]
[343706753,1732895438054,-349.56653221,9.999e-05,2]
[343706755,1732895438064,-5800.0,9.999e-05,2]
[343706757,1732895438073,-500.0,9.999e-05,2]
[343706759,1732895438082,-9534.30528666,0.0001,2]
[343706761,1732895438091,-122875.37355628,0.0001,2]
[343706763,1732895438102,-100862.83611585,0.0001,2]
[343706766,1732895438114,-3226.47203635,0.0001,2]
[343706768,1732895438125,-3045.04029675,0.0001,2]
[343706770,1732895438136,-4887.9872592,0.0001,2]
[343706786,1732895438399,-298189.59043507,0.0001,2]
[343706788,1732895438409,-5336.20942834,0.0001,2]
[343706790,1732895438419,-5336.20942825,0.0001,2]
[343706791,1732895438428,-5336.20942825,0.0001,2]
[343706793,1732895438437,-5336.20942825,0.0001,2]
[343706795,1732895438448,-5336.20942825,0.0001,2]
[343706796,1732895438457,-5336.20942825,0.0001,2]
[343706798,1732895438466,-5336.20942825,0.0001,2]
[343706799,1732895438476,-5336.20942825,0.0001,2]
[343706801,1732895438487,-5336.20942825,0.0001,2]
[343706803,1732895438497,-498.57,0.0001,2]
[343706804,1732895438506,-68104096.2847319,0.0001,2]
[343706812,1732895438604,-1363.83747749,0.0001,2]
[343706813,1732895438615,-5154.3975,0.0001,2]
[343706819,1732895438675,-2370.649996,0.0001,2]
[343706830,1732895438837,-1433.065,0.0001,2]
[343706831,1732895438848,-2112.23884391,0.0001,2]
[343706832,1732895438859,-1212.45000005,0.0001,2]
[343706833,1732895438870,-907.42,0.0001,2]
[343706834,1732895438881,-2626.8,0.0001,2]
[343706835,1732895438891,-64405.83072587,0.0001,2]
[343706847,1732895438993,-517.7691157,0.0001,2]
[343707043,1732895440940,-17905.0968274,0.0001,2]
[343707044,1732895440951,-2684.431675,0.0001,2]
[343707046,1732895440963,-722.46229329,0.0001,2]
[343707048,1732895440974,-9809.6,0.0001,2]
[343707051,1732895440992,-12178.82064,0.0001,2]
[343707053,1732895441003,-35063.86578122,0.0001,2]
[343707055,1732895441015,-1373.36807363,0.0001,2]
[343707065,1732895441094,-458.11386427,0.0001,2]
[343707067,1732895441106,-259.425,0.0001,2]
[343707069,1732895441116,-393.2036086,0.0001,2]
[343707071,1732895441127,-3242.8206311,0.0001,2]
[343707074,1732895441139,-11403.38142809,0.0001,2]
[343707317,1732895444046,-8685.56833325,0.0001,2]
[343707321,1732895444079,-647.81434142,0.0001,2]
[343707323,1732895444094,-6189.18090051,0.0001,2]
[343707327,1732895444105,-6463.99999632,0.0001,2]
[343707330,1732895444116,-12228.49999945,0.0001,2]
[343707340,1732895444171,-30984.73123936,0.0001,2]
[343707361,1732895444366,-1538.13130424,0.0001,2]
[343707363,1732895444380,-6008.30552356,0.0001,2]
[343707365,1732895444391,-18087.70066485,0.0001,2]
[343707368,1732895444402,-5567.23873401,0.0001,2]
[343707538,1732895446000,-750.79829008,0.0001,2]
[343707540,1732895446011,-500.0,0.0001,2]
[343707548,1732895446082,-453.81,9.816e-05,2]
[343707550,1732895446092,-167669.48389847,0.0001,2]
[343707552,1732895446103,-444.33572696,0.0001,2]
[343707554,1732895446115,-98085.00000007,0.0001,2]
[343707567,1732895446270,-9739.618,0.0001,2]
[343707568,1732895446283,-288.12716778,0.0001,2]
[343707573,1732895446365,-173.87678356,0.0001,2]
[343707575,1732895446380,-4844.1333054,0.0001,2]
[343711040,1732895535303,169.0,0.000265,120]
[343711044,1732895708394,157.93,0.00016658,30]
[343711046,1732895830540,-1108.54,8.219e-05,2]
[343711047,1732895830586,-1313.65,8.799e-05,2]
[343711048,1732895830630,-250.0,8.808e-05,2]
[343711049,1732895830674,-400.0,9e-05,3]
[343711050,1732895830715,-173.68,9.082e-05,2]
[343711051,1732895830757,-800.0,9.1e-05,3]
[343711052,1732895830803,-1200.0,9.2e-05,3]
[343711053,1732895830844,-1700.0,9.3e-05,3]
[343711054,1732895830888,-2100.0,9.4e-05,3]
[343711055,1732895830934,-400.0,9.5e-05,3]
[343711056,1732895830977,-400.0,9.589e-05,2]
[343711057,1732895831020,-400.0,9.6e-05,3]
[343711058,1732895831297,-792.85799769,9.65e-05,2]
[343711059,1732895831321,-299.99,9.67e-05,2]
[343711060,1732895831346,-400.0,9.7e-05,3]
[343711061,1732895831371,-150.0,9.702e-05,2]
[343711062,1732895831395,-49570.0,9.703e-05,2]
[343711063,1732895831420,-177.93321156,9.727e-05,2]
[343711064,1732895831447,-150.0,9.727e-05,2]
[343711065,1732895831474,-150.0,9.729e-05,2]
[343711066,1732895831506,-300.0,9.731e-05,2]
[343711067,1732895831534,-150.0,9.733e-05,2]
[343711068,1732895831559,-300.0,9.735e-05,2]
[343711069,1732895831588,-150.0,9.738e-05,2]
[343711070,1732895831616,-150.0,9.74e-05,2]
[343711071,1732895831642,-150.0,9.743e-05,2]
[343711072,1732895831670,-150.0,9.745e-05,2]
[343711073,1732895831696,-150.0,9.747e-05,2]
[343711074,1732895831724,-150.0,9.757e-05,2]
[343711075,1732895831752,-150.0,9.758e-05,2]
[343711076,1732895831780,-150.0,9.761e-05,2]
[343711077,1732895831811,-300.0,9.764e-05,2]
[343711078,1732895831840,-150.0,9.768e-05,2]
[343711079,1732895831868,-150.0,9.768e-05,2]
[343711080,1732895831895,-150.0,9.769e-05,2]
[343711081,1732895831922,-150.0,9.771e-05,2]
[343711082,1732895831950,-150.0,9.773e-05,2]
[343711083,1732895831978,-150.0,9.773e-05,2]
[343711084,1732895832007,-300.0,9.782e-05,2]
[343711085,1732895832036,-150.0,9.792e-05,2]
[343711086,1732895832064,-150.0,9.799e-05,2]
[343711087,1732895832090,-56246.7488,9.8e-05,2]
[343711088,1732895832115,-858.411,9.8e-05,2]
[343711089,1732895832141,-1000.0,9.8e-05,2]
[343711090,1732895832167,-574.3469,9.8e-05,2]
[343711091,1732895832191,-500.0,9.8e-05,2]
[343711092,1732895832216,-45139.2611,9.8e-05,2]
[343711093,1732895832242,-400.0,9.8e-05,3]
[343711094,1732895832271,-150.0,9.8e-05,2]
[343711095,1732895832299,-150.0,9.801e-05,2]
[343711096,1732895832327,-300.0,9.802e-05,2]
[343711097,1732895832357,-150.0,9.811e-05,2]
[343711098,1732895832501,-150.0,9.82e-05,2]
[343711099,1732895832532,-150.0,9.824e-05,2]
[343711100,1732895832561,-150.0,9.828e-05,2]
[343711101,1732895832593,-150.0,9.83e-05,2]
[343711102,1732895832619,-150.0,9.831e-05,2]
[343711103,1732895832648,-150.0,9.833e-05,2]
[343711104,1732895832677,-150.0,9.838e-05,2]
[343711105,1732895832706,-150.0,9.839e-05,2]
[343711106,1732895832731,-150.0,9.843e-05,2]
[343711107,1732895832759,-150.0,9.846e-05,2]
[343711108,1732895832793,-150.0,9.848e-05,2]
[343711109,1732895832822,-150.0,9.848e-05,2]
[343711110,1732895832849,-150.0,9.849e-05,2]
[343711111,1732895832876,-150.0,9.851e-05,2]
[343711112,1732895832904,-150.0,9.852e-05,2]
[343711113,1732895832932,-150.0,9.858e-05,2]
[343711114,1732895832962,-150.0,9.861e-05,2]
[343711115,1732895832986,-1600.0,9.863e-05,2]
[343711116,1732895833016,-150.0,9.869e-05,2]
[343711117,1732895833042,-150.0,9.871e-05,2]
[343711118,1732895833070,-150.0,9.879e-05,2]
[343711119,1732895833097,-150.0,9.88e-05,2]
[343711120,1732895833124,-150.0,9.88e-05,2]
[343711121,1732895833151,-150.0,9.88e-05,2]
[343711122,1732895833177,-150.0,9.882e-05,2]
[343711123,1732895833204,-150.0,9.89e-05,2]
[343711124,1732895833232,-150.0,9.891e-05,2]
[343711125,1732895833260,-150.0,9.895e-05,2]
[343711126,1732895833289,-2500.0,9.9e-05,2]
[343711127,1732895833314,-760.0,9.9e-05,3]
[343711128,1732895833339,-2430.83893681,9.9e-05,2]
[343711129,1732895833368,-150.0,9.9e-05,2]
[343711130,1732895833396,-37991.8113,9.9e-05,2]
[343711131,1732895833421,-5000.0294991,9.9e-05,2]
[343711132,1732895833447,-12772.2578,9.9e-05,2]
[343711133,1732895833472,-13069.4765,9.9e-05,2]
[343711134,1732895833500,-100000.0,9.9e-05,2]
[343711135,1732895833530,-1812.8287,9.9e-05,2]
[343711136,1732895833555,-4563.3757,9.9e-05,2]
[343711137,1732895833582,-4268.15010027,9.9e-05,2]
[343711138,1732895833606,-1394.809,9.9e-05,2]
[343711139,1732895833635,-150.0,9.908e-05,2]
[343711140,1732895833664,-150.0,9.91e-05,2]
[343711141,1732895833691,-150.0,9.914e-05,2]
[343711142,1732895833719,-150.0,9.914e-05,2]
[343711143,1732895833747,-150.0,9.917e-05,2]
[343711144,1732895833783,-150.0,9.918e-05,2]
[343711145,1732895833811,-150.0,9.919e-05,2]
[343711146,1732895833840,-150.0,9.92e-05,2]
[343711147,1732895833865,-500.0,9.92e-05,2]
[343711148,1732895833895,-150.0,9.92e-05,2]
[343711149,1732895833927,-150.0,9.928e-05,2]
[343711150,1732895833955,-150.0,9.929e-05,2]
[343711151,1732895833982,-150.0,9.939e-05,2]
[343711152,1732895834017,-150.0,9.946e-05,2]
[343711153,1732895834043,-150.0,9.947e-05,2]
[343711154,1732895834221,-300.0,9.948e-05,2]
[343711155,1732895834250,-150.0,9.952e-05,2]
[343711156,1732895834279,-150.0,9.954e-05,2]
[343711157,1732895834306,-150.0,9.972e-05,2]
[343711158,1732895834333,-671.97063805,9.973e-05,2]
[343711159,1732895834359,-520.04158488,9.973e-05,2]
[343711160,1732895834387,-671.97063805,9.974e-05,2]
[343711161,1732895834414,-671.97063805,9.975e-05,2]
[343711162,1732895834443,-150.0,9.976e-05,2]
[343711163,1732895834472,-150.0,9.978e-05,2]
[343711164,1732895834501,-150.0,9.981e-05,2]
[343711165,1732895834528,-150.0,9.982e-05,2]
[343711166,1732895834558,-150.0,9.983e-05,2]
[343711167,1732895834588,-150.0,9.987e-05,2]
[343711168,1732895834615,-671.97063805,9.99e-05,2]
[343711169,1732895834639,-150.0,9.993e-05,2]
[343711170,1732895834664,-150.0,9.995e-05,2]
[343711171,1732895834691,-150.0,9.996e-05,2]
[343711172,1732895834717,-671.97063805,9.997e-05,2]
[343711173,1732895834744,-671.97063805,9.998e-05,2]
[343711174,1732895834772,-4767.15264333,0.0001,2]
[343711175,1732895834799,-512402.2541461,0.0001,2]
[343711176,1732895834824,-5353.71025031,0.0001,2]
[343711177,1732895834849,-5353.71025025,0.0001,2]
[343711178,1732895834875,-5353.71025025,0.0001,2]
[343711179,1732895834902,-5353.71025025,0.0001,2]
[343711180,1732895834928,-5353.71025025,0.0001,2]
[343711181,1732895834953,-5353.71025025,0.0001,2]
[343711182,1732895834994,-5353.71025025,0.0001,2]
[343711183,1732895835045,-5353.71025025,0.0001,2]
[343711184,1732895835098,-5353.71025025,0.0001,2]
[343711185,1732895835152,-1061876.33899965,0.0001,2]
[343711187,1732896236565,150.0,6.549e-05,2]
[343711188,1732896236587,102.3677396,6.549e-05,2]
[343711189,1732896358261,157.93,0.00016658,30]
[343711202,1732896523406,50000.0,0.00019,30]
[343711229,1732896631980,-1053.11,8.219e-05,2]
[343711230,1732896631990,-200.0,8.851e-05,2]
[343711231,1732896632000,-500.0,8.859e-05,2]
[343711232,1732896632009,-656.82,8.863e-05,2]
[343711233,1732896632018,-1000.0,8.863e-05,2]
[343711234,1732896632259,-250.0,8.876e-05,2]
[343711235,1732896632270,-250.0,8.901e-05,2]
[343711236,1732896632280,-2000.0,8.911e-05,2]
[343711237,1732896632289,-300.0,8.95e-05,2]
[343711238,1732896632298,-4040.48177077,8.951e-05,2]